[Event "Championnat du monde jeunes U12F"]
[Date "2024.11.22"]
[White "Saharkar, Sharvari"]
[Black "Xia, Miaoyan"]
[WhiteElo "1581"]
[BlackElo "1711"]
[Round "7.25"]
[Result "0-1"]
[TimeControl "5400+30"]

1. e4 {[%clk 1:30:11]} 1... e5 {[%clk 1:30:52]} 2. Nf3 {[%clk 1:29:53]} 2... Nc6
{[%clk 1:31:15]} 3. Bc4 {[%clk 1:29:00]} 3... Nf6 {[%clk 1:31:36]} 4. d3 {[%clk
1:28:14]} 4... Be7 {[%clk 1:31:27]} 5. O-O {[%clk 1:26:59]} 5... O-O {[%clk
1:31:40]} 6. Re1 {[%clk 1:26:20]} 6... d6 {[%clk 1:31:58]} 7. a4 {[%clk
1:25:10]} 7... Na5 {[%clk 1:32:15]} 8. Ba2 {[%clk 1:24:59]} 8... c5 {[%clk
1:32:33]} 9. Nc3 {[%clk 1:21:46]} 9... Nc6 {[%clk 1:32:07]} 10. Bc4 {[%clk
1:18:44]} 10... Bg4 {[%clk 1:31:22]} 11. h3 {[%clk 1:17:24]} 11... Bh5 {[%clk
1:29:37]} 12. Be3 {[%clk 1:15:59]} 12... Nd4 {[%clk 1:29:12]} 13. Bxd4 {[%clk
1:15:49]} 13... cxd4 {[%clk 1:29:34]} 14. Nd5 {[%clk 1:15:25]} 14... Nxd5 {[%clk
1:28:55]} 15. Bxd5 {[%clk 1:15:42]} 15... Rb8 {[%clk 1:29:06]} 16. c3 {[%clk
1:14:04]} 16... Bf6 {[%clk 1:25:29]} 17. Rc1 {[%clk 1:10:52]} 17... dxc3 {[%clk
1:22:32]} 18. Rxc3 {[%clk 1:10:23]} 18... b6 {[%clk 1:21:53]} 19. Qe2 {[%clk
1:07:47]} 19... Rc8 {[%clk 1:19:00]} 20. Rec1 {[%clk 1:06:50]} 20... Rc5 {[%clk
1:17:19]} 21. Qe3 {[%clk 1:03:38]} 21... Qd7 {[%clk 1:16:38]} 22. Rxc5 {[%clk
0:59:13]} 22... bxc5 {[%clk 1:16:58]} 23. b3 {[%clk 0:58:43]} 23... h6 {[%clk
1:15:57]} 24. Rc4 {[%clk 0:55:44]} 24... Rb8 {[%clk 1:15:59]} 25. Rc3 {[%clk
0:53:31]} 25... Kf8 {[%clk 1:15:24]} 26. Bc4 {[%clk 0:53:12]} 26... Rb6 {[%clk
1:13:29]} 27. Bb5 {[%clk 0:51:47]} 27... Qe7 {[%clk 1:10:34]} 28. b4 {[%clk
0:51:37]} 28... Bxf3 {[%clk 1:04:38]} 29. bxc5 {[%clk 0:47:26]} 29... dxc5
{[%clk 1:04:24]} 30. Rxc5 {[%clk 0:47:17]} 30... Rb8 {[%clk 1:04:06]} 31. Qc1
{[%clk 0:43:22]} 31... Be2 {[%clk 0:59:16]} 32. Rc7 {[%clk 0:41:07]} 32... Qd8
{[%clk 0:55:30]} 33. Rxa7 {[%clk 0:36:01]} 33... Rc8 {[%clk 0:51:35]} 34. Qe3
{[%clk 0:29:52]} 34... Qd4 {[%clk 0:50:58]} 35. Bc4 {[%clk 0:27:53]} 35... Qxe3
{[%clk 0:47:40]} 36. Rxf7+ {[%clk 0:28:15]} 36... Ke8 {[%clk 0:48:02]} 37. fxe3
{[%clk 0:28:36]} 37... Rxc4 {[%clk 0:48:20]} 38. dxc4 {[%clk 0:22:40]} 38...
Kxf7 {[%clk 0:48:23]} 39. c5 {[%clk 0:22:06]} 39... Bd8 {[%clk 0:48:48]} 40. Kf2
{[%clk 0:21:46]} 40... Bd1 {[%clk 0:49:09]} 41. Kg3 {[%clk 0:21:20]} 41... Bxa4
{[%clk 0:49:31]} 42. Kg4 {[%clk 0:21:07]} 42... Be7 {[%clk 0:49:58]} 43. Kf5
{[%clk 0:19:59]} 43... Bxc5 {[%clk 0:50:20]} 44. Kxe5 {[%clk 0:20:11]} 44...
Bxe3 {[%clk 0:50:46]} 45. Kd6 {[%clk 0:20:07]} 45... Bf4+ {[%clk 0:51:02]} 46.
e5 {[%clk 0:19:00]} 46... Kg6 {[%clk 0:51:22]} 47. Kd5 {[%clk 0:19:11]} 47...
Bb3+ {[%clk 0:51:37]} 48. Ke4 {[%clk 0:19:01]} 48... Bh2 {[%clk 0:51:58]} 49.
Kd4 {[%clk 0:16:14]} 49... Kf5 {[%clk 0:52:17]} 50. g4+ {[%clk 0:16:06]} 50...
Ke6 {[%clk 0:52:42]} 51. Kc3 {[%clk 0:15:29]} 51... Bd5 {[%clk 0:53:01]} 52. Kd3
{[%clk 0:13:12]} 52... Bxe5 {[%clk 0:53:25]} 53. Ke3 {[%clk 0:12:05]} 53... Bg2
{[%clk 0:53:47]} 54. h4 {[%clk 0:12:12]} 54... Bh3 {[%clk 0:54:07]} 55. Kf3
{[%clk 0:11:32]} 55... Kf6 {[%clk 0:54:29]} 56. h5 {[%clk 0:10:26]} 56... Kg5
{[%clk 0:54:53]} 57. Ke4 {[%clk 0:10:48]} 57... Bxg4 {[%clk 0:55:14]} 58. Kxe5
{[%clk 0:11:04]} 58... Kxh5 {[%clk 0:55:39]} 59. Kf4 {[%clk 0:11:21]} 59... g5+
{[%clk 0:56:04]} 60. Kg3 {[%clk 0:10:00]} 60... Bc8 {[%clk 0:56:27]} 61. Kh2
{[%clk 0:09:05]} 61... Kh4 {[%clk 0:56:25]} 62. Kg2 {[%clk 0:09:26]} 62... g4
{[%clk 0:56:50]} 63. Kh2 {[%clk 0:08:26]} 63... g3+ {[%clk 0:57:17]} 64. Kg2
{[%clk 0:08:42]} 64... Kg4 {[%clk 0:57:44]} 65. Kg1 {[%clk 0:07:10]} 65... Kf3
{[%clk 0:58:01]} 66. Kh1 {[%clk 0:06:07]} 66... g2+ {[%clk 0:58:10]} 67. Kg1
{[%clk 0:06:27]} 67... Ba6 {[%clk 0:58:35]} 68. Kh2 {[%clk 0:06:50]} 68... Kf2
{[%clk 0:59:03]} 0-1

[Variant "Standard"]
[Site "Europe Echecs"]

[Event "Championnat du monde jeunes U12F"]
[Date "2024.11.22"]
[White "Tursunalieva, Nurelina"]
[Black "Huang, Lucia"]
[WhiteElo "1701"]
[BlackElo "1621"]
[Round "7.26"]
[Result "1-0"]
[TimeControl "5400+30"]

1. e4 {[%clk 1:30:59]} 1... e5 {[%clk 1:30:56]} 2. Nf3 {[%clk 1:31:26]} 2... Nc6
{[%clk 1:31:22]} 3. Bc4 {[%clk 1:31:52]} 3... Bc5 {[%clk 1:31:47]} 4. b4 {[%clk
1:32:16]} 4... Bxb4 {[%clk 1:31:55]} 5. c3 {[%clk 1:32:42]} 5... Be7 {[%clk
1:31:23]} 6. d4 {[%clk 1:32:31]} 6... exd4 {[%clk 1:31:23]} 7. cxd4 {[%clk
1:32:41]} 7... d6 {[%clk 1:30:36]} 8. Qb3 {[%clk 1:32:08]} 8... Na5 {[%clk
1:24:21]} 9. Bxf7+ {[%clk 1:29:24]} 9... Kf8 {[%clk 1:24:41]} 10. Qa4 {[%clk
1:27:36]} 10... Kxf7 {[%clk 1:23:25]} 11. Qxa5 {[%clk 1:27:57]} 11... h6 {[%clk
1:16:43]} 12. Qd2 {[%clk 1:26:09]} 12... Nf6 {[%clk 1:13:48]} 13. Nc3 {[%clk
1:11:24]} 13... c6 {[%clk 1:12:47]} 14. e5 {[%clk 1:04:39]} 14... Nd5 {[%clk
1:12:40]} 15. Nxd5 {[%clk 1:03:57]} 15... cxd5 {[%clk 1:13:03]} 16. Qf4+ {[%clk
1:03:48]} 16... Ke8 {[%clk 1:09:51]} 17. h4 {[%clk 1:02:53]} 17... Be6 {[%clk
1:02:33]} 18. O-O {[%clk 0:52:40]} 18... Qd7 {[%clk 0:57:24]} 19. Re1 {[%clk
0:40:32]} 19... Rc8 {[%clk 0:51:33]} 20. Ba3 {[%clk 0:34:35]} 20... Rc6 {[%clk
0:43:28]} 21. exd6 {[%clk 0:32:56]} 21... Bxd6 {[%clk 0:43:05]} 22. Bxd6 {[%clk
0:32:31]} 22... Rxd6 {[%clk 0:43:11]} 23. Ne5 {[%clk 0:32:36]} 23... Rf8 {[%clk
0:30:18]} 24. Qg3 {[%clk 0:24:44]} 24... Qd8 {[%clk 0:26:14]} 25. Qg6+ {[%clk
0:21:13]} 25... Ke7 {[%clk 0:23:37]} 26. Qxg7+ {[%clk 0:21:28]} 26... Ke8 {[%clk
0:23:17]} 27. Ng6 {[%clk 0:20:44]} 27... Rf6 {[%clk 0:17:46]} 28. Rac1 {[%clk
0:18:11]} 28... Rc6 {[%clk 0:15:43]} 29. Rxc6 {[%clk 0:11:35]} 29... bxc6 {[%clk
0:16:07]} 30. Ne5 {[%clk 0:11:30]} 30... Qe7 {[%clk 0:13:13]} 31. Qh8+ {[%clk
0:09:37]} 31... Qf8 {[%clk 0:12:43]} 32. Qxf8+ {[%clk 0:09:32]} 32... Kxf8
{[%clk 0:12:38]} 33. Nxc6 {[%clk 0:09:53]} 33... a6 {[%clk 0:11:53]} 34. Rb1
{[%clk 0:09:18]} 34... Bf5 {[%clk 0:10:08]} 35. Rb8+ {[%clk 0:09:38]} 35... Kg7
{[%clk 0:09:47]} 36. Nb4 {[%clk 0:08:46]} 36... Rd6 {[%clk 0:08:21]} 37. Ra8
{[%clk 0:08:58]} 37... Bb1 {[%clk 0:07:44]} 38. a3 {[%clk 0:08:56]} 38... Kg6
{[%clk 0:07:01]} 39. Rxa6 {[%clk 0:09:12]} 39... Rxa6 {[%clk 0:07:26]} 40. Nxa6
{[%clk 0:09:38]} 40... Kf5 {[%clk 0:07:48]} 41. Nc5 {[%clk 0:09:56]} 41... Kf6
{[%clk 0:06:22]} 42. a4 {[%clk 0:10:17]} 42... Ba2 {[%clk 0:06:05]} 43. a5
{[%clk 0:10:39]} 43... Bc4 {[%clk 0:06:30]} 44. a6 {[%clk 0:10:52]} 44... Bb5
{[%clk 0:06:45]} 45. a7 {[%clk 0:11:15]} 45... Bc6 {[%clk 0:07:08]} 46. Nd7+
{[%clk 0:11:31]} 46... Kf5 {[%clk 0:06:22]} 47. f3 {[%clk 0:11:39]} 47... Kf4
{[%clk 0:06:30]} 48. Kf2 {[%clk 0:12:00]} 48... Bb7 {[%clk 0:06:14]} 49. Nb6
{[%clk 0:12:18]} 49... h5 {[%clk 0:06:22]} 50. a8=Q {[%clk 0:12:38]} 50... Bxa8
{[%clk 0:06:43]} 51. Nxa8 {[%clk 0:13:01]} 51... Kf5 {[%clk 0:07:05]} 52. Nb6
{[%clk 0:13:21]} 52... Ke6 {[%clk 0:07:25]} 53. g4 {[%clk 0:13:45]} 53... hxg4
{[%clk 0:07:47]} 54. fxg4 {[%clk 0:14:08]} 54... Kd6 {[%clk 0:08:13]} 55. h5
{[%clk 0:14:32]} 55... Kc6 {[%clk 0:08:38]} 56. h6 {[%clk 0:14:48]} 56... Kxb6
{[%clk 0:09:02]} 57. h7 {[%clk 0:15:12]} 57... Kb5 {[%clk 0:09:27]} 58. h8=Q
{[%clk 0:15:34]} 58... Kc4 {[%clk 0:09:48]} 59. g5 {[%clk 0:15:43]} 59... Kd3
{[%clk 0:10:08]} 60. g6 {[%clk 0:16:02]} 60... Ke4 {[%clk 0:10:33]} 61. Qe5+
{[%clk 0:16:10]} 61... Kd3 {[%clk 0:10:42]} 62. g7 {[%clk 0:16:28]} 62... Kc4
{[%clk 0:11:03]} 63. g8=Q {[%clk 0:16:50]} 63... Kd3 {[%clk 0:11:25]} 64. Qgxd5
{[%clk 0:17:03]} 64... Kc3 {[%clk 0:11:40]} 65. Qe3+ {[%clk 0:17:20]} 65... Kc2
{[%clk 0:12:01]} 66. Qdb3# {[%clk 0:17:35]} 1-0

[Variant "Standard"]
[Site "Europe Echecs"]

[Event "Championnat du monde jeunes U12F"]
[Date "2024.11.22"]
[White "Ahmed Mohamed, Zakaa"]
[Black "Liang, Candice"]
[WhiteElo "1866"]
[BlackElo "1551"]
[Round "7.27"]
[Result "1-0"]
[TimeControl "5400+30"]

1. e4 {[%clk 1:30:57]} 1... c5 {[%clk 1:30:54]} 2. Nc3 {[%clk 1:31:21]} 2... Nc6
{[%clk 1:31:19]} 3. f4 {[%clk 1:31:44]} 3... g6 {[%clk 1:31:45]} 4. Bc4 {[%clk
1:32:09]} 4... e6 {[%clk 1:31:53]} 5. f5 {[%clk 1:32:14]} 5... exf5 {[%clk
1:30:18]} 6. d3 {[%clk 1:32:20]} 6... fxe4 {[%clk 1:23:47]} 7. dxe4 {[%clk
1:32:30]} 7... Bg7 {[%clk 1:23:06]} 8. Nf3 {[%clk 1:32:38]} 8... Nf6 {[%clk
1:19:27]} 9. O-O {[%clk 1:32:25]} 9... O-O {[%clk 1:19:04]} 10. Bf4 {[%clk
1:30:42]} 10... Na5 {[%clk 1:09:02]} 11. Be2 {[%clk 1:13:03]} 11... Qb6 {[%clk
1:01:06]} 12. Bd6 {[%clk 1:02:59]} 12... c4+ {[%clk 0:58:54]} 13. Kh1 {[%clk
1:02:57]} 13... Re8 {[%clk 0:56:58]} 14. e5 {[%clk 1:01:34]} 14... Ng4 {[%clk
0:56:08]} 15. Nd5 {[%clk 1:00:36]} 15... Nf2+ {[%clk 0:53:59]} 16. Rxf2 {[%clk
1:00:52]} 16... Qxf2 {[%clk 0:54:23]} 17. Nc7 {[%clk 1:01:14]} 17... b5 {[%clk
0:50:44]} 18. Nxe8 {[%clk 1:00:13]} 18... Bb7 {[%clk 0:42:12]} 19. Nf6+ {[%clk
0:58:08]} 19... Bxf6 {[%clk 0:41:18]} 20. exf6 {[%clk 0:57:51]} 20... Re8 {[%clk
0:41:24]} 21. Be7 {[%clk 0:57:50]} 21... Qe3 {[%clk 0:34:48]} 22. Qxd7 {[%clk
0:56:37]} 22... Bc6 {[%clk 0:35:00]} 23. Qd2 {[%clk 0:56:48]} 23... Qxd2 {[%clk
0:34:04]} 24. Nxd2 {[%clk 0:57:10]} 24... Bd5 {[%clk 0:32:08]} 25. Bg4 {[%clk
0:54:26]} 25... Bc6 {[%clk 0:31:23]} 26. Nf3 {[%clk 0:54:44]} 26... h5 {[%clk
0:31:00]} 27. Bh3 {[%clk 0:55:07]} 27... c3 {[%clk 0:29:19]} 28. b3 {[%clk
0:54:54]} 28... Bxf3 {[%clk 0:27:47]} 29. gxf3 {[%clk 0:55:17]} 29... a6 {[%clk
0:26:57]} 30. a4 {[%clk 0:53:45]} 30... Rb8 {[%clk 0:25:31]} 31. axb5 {[%clk
0:52:54]} 31... Rxb5 {[%clk 0:25:50]} 32. b4 {[%clk 0:53:09]} 32... Nc6 {[%clk
0:24:40]} 33. Bd7 {[%clk 0:53:24]} 33... Rd5 {[%clk 0:23:35]} 34. Bxc6 {[%clk
0:53:39]} 34... Rd2 {[%clk 0:23:45]} 35. Be4 {[%clk 0:54:04]} 35... h4 {[%clk
0:23:51]} 36. Rxa6 {[%clk 0:54:19]} 36... h3 {[%clk 0:23:56]} 37. Ra1 {[%clk
0:54:41]} 37... Rd7 {[%clk 0:22:08]} 38. b5 {[%clk 0:55:00]} 38... Kh7 {[%clk
0:21:34]} 39. b6 {[%clk 0:55:24]} 39... Kh6 {[%clk 0:20:34]} 40. b7 {[%clk
0:55:47]} 40... g5 {[%clk 0:20:35]} 41. b8=Q {[%clk 0:55:53]} 41... g4 {[%clk
0:20:08]} 42. Qf4+ {[%clk 0:56:11]} 42... Kh5 {[%clk 0:20:27]} 43. Qxg4+ {[%clk
0:56:25]} 43... Kh6 {[%clk 0:20:19]} 44. Bf8# {[%clk 0:56:52]} 1-0

[Variant "Standard"]
[Site "Europe Echecs"]

[Event "Championnat du monde jeunes U12F"]
[Date "2024.11.22"]
[White "Budhram, Kaylee"]
[Black "Kovalskyy, Alicia"]
[WhiteElo "1614"]
[BlackElo "1871"]
[Round "7.28"]
[Result "1/2-1/2"]
[TimeControl "5400+30"]

1. d4 {[%clk 1:30:57]} 1... d5 {[%clk 1:30:57]} 2. c4 {[%clk 1:31:23]} 2... e6
{[%clk 1:31:23]} 3. Nf3 {[%clk 1:31:48]} 3... Nf6 {[%clk 1:31:48]} 4. g3 {[%clk
1:32:11]} 4... Be7 {[%clk 1:32:05]} 5. Bg2 {[%clk 1:32:26]} 5... O-O {[%clk
1:32:24]} 6. O-O {[%clk 1:32:53]} 6... c6 {[%clk 1:32:41]} 7. Qc2 {[%clk
1:33:12]} 7... b6 {[%clk 1:33:07]} 8. Rd1 {[%clk 1:33:36]} 8... Ba6 {[%clk
1:29:33]} 9. Nc3 {[%clk 1:30:51]} 9... Bxc4 {[%clk 1:19:56]} 10. Ne5 {[%clk
1:14:14]} 10... Ba6 {[%clk 1:14:37]} 11. e4 {[%clk 1:11:23]} 11... Qc7 {[%clk
0:59:35]} 12. Bf4 {[%clk 1:02:55]} 12... Nh5 {[%clk 0:51:43]} 13. Be3 {[%clk
0:48:08]} 13... Nd7 {[%clk 0:35:39]} 14. Qa4 {[%clk 0:26:37]} 14... Bb7 {[%clk
0:18:51]} 15. exd5 {[%clk 0:25:57]} 15... b5 {[%clk 0:18:00]} 16. Qb3 {[%clk
0:25:36]} 16... exd5 {[%clk 0:17:40]} 17. Rac1 {[%clk 0:16:35]} 17... Qd8 {[%clk
0:12:57]} 18. Nxd7 {[%clk 0:15:15]} 18... Qxd7 {[%clk 0:12:22]} 19. Qc2 {[%clk
0:13:45]} 19... a5 {[%clk 0:09:38]} 20. Re1 {[%clk 0:11:27]} 20... Rfe8 {[%clk
0:08:37]} 21. Bf3 {[%clk 0:09:52]} 21... Nf6 {[%clk 0:08:07]} 22. Bg2 {[%clk
0:10:00]} 22... h6 {[%clk 0:06:28]} 23. Qd2 {[%clk 0:08:17]} 23... Bd6 {[%clk
0:05:10]} 24. h3 {[%clk 0:07:11]} 24... Qf5 {[%clk 0:04:34]} 25. Ne2 {[%clk
0:05:25]} 25... Bb4 {[%clk 0:03:45]} 26. Nc3 {[%clk 0:05:40]} 26... Ne4 {[%clk
0:03:25]} 27. Qc2 {[%clk 0:04:26]} 27... Nd6 {[%clk 0:03:16]} 28. Qxf5 {[%clk
0:02:31]} 28... Nxf5 {[%clk 0:03:42]} 29. Kf1 {[%clk 0:01:59]} 29... Ba6 {[%clk
0:02:01]} 30. g4 {[%clk 0:01:04]} 30... Nxe3+ {[%clk 0:01:53]} 31. Rxe3 {[%clk
0:01:16]} 31... Bxc3 {[%clk 0:01:39]} 32. bxc3 {[%clk 0:01:38]} 32... Rxe3
{[%clk 0:01:47]} 33. fxe3 {[%clk 0:02:05]} 33... Re8 {[%clk 0:01:28]} 34. Kf2
{[%clk 0:02:26]} 34... f6 {[%clk 0:01:02]} 35. Bf3 {[%clk 0:02:42]} 35... Kf7
{[%clk 0:01:06]} 36. Rb1 {[%clk 0:02:36]} 36... Ke6 {[%clk 0:00:50]} 37. Be2
{[%clk 0:02:17]} 37... Kd6 {[%clk 0:00:55]} 38. Bd3 {[%clk 0:02:10]} 38... Rb8
{[%clk 0:00:50]} 39. Ra1 {[%clk 0:02:05]} 39... Bc8 {[%clk 0:00:53]} 40. Rb1
{[%clk 0:02:02]} 40... Bd7 {[%clk 0:00:44]} 41. Be2 {[%clk 0:01:50]} 41... f5
{[%clk 0:00:52]} 42. Kg3 {[%clk 0:01:53]} 42... Re8 {[%clk 0:01:05]} 43. Kf3
{[%clk 0:01:42]} 43... Re4 {[%clk 0:00:54]} 44. Rg1 {[%clk 0:01:44]} 44... g5
{[%clk 0:00:45]} 45. Bd3 {[%clk 0:01:30]} 45... fxg4+ {[%clk 0:01:04]} 46. hxg4
{[%clk 0:01:44]} 46... Re6 {[%clk 0:01:03]} 47. Re1 {[%clk 0:01:13]} 47... Rf6+
{[%clk 0:01:03]} 48. Kg3 {[%clk 0:01:35]} 48... Be6 {[%clk 0:00:42]} 1/2-1/2

[Variant "Standard"]
[Site "Europe Echecs"]

[Event "Championnat du monde jeunes U12F"]
[Date "2024.11.22"]
[White "Sunea, Sara Maria"]
[Black "Ordonez Alarcon, Daniela"]
[WhiteElo "1823"]
[BlackElo "1606"]
[Round "7.29"]
[Result "1-0"]
[TimeControl "5400+30"]

1. e4 {[%clk 1:30:55]} 1... e5 {[%clk 1:30:36]} 2. Bc4 {[%clk 1:31:20]} 2... Nf6
{[%clk 1:28:31]} 3. d3 {[%clk 1:31:42]} 3... Nc6 {[%clk 1:28:49]} 4. Nc3 {[%clk
1:32:05]} 4... Bb4 {[%clk 1:28:10]} 5. Ne2 {[%clk 1:32:23]} 5... d5 {[%clk
1:20:32]} 6. exd5 {[%clk 1:30:40]} 6... Nxd5 {[%clk 1:20:48]} 7. Bd2 {[%clk
1:28:26]} 7... Be6 {[%clk 1:17:49]} 8. Bb5 {[%clk 1:23:09]} 8... Qd7 {[%clk
1:11:11]} 9. O-O {[%clk 1:22:19]} 9... Bxc3 {[%clk 1:05:56]} 10. Nxc3 {[%clk
1:22:08]} 10... a6 {[%clk 1:05:05]} 11. Ba4 {[%clk 1:21:07]} 11... O-O {[%clk
1:02:17]} 12. Re1 {[%clk 1:20:34]} 12... b5 {[%clk 1:01:57]} 13. Bb3 {[%clk
1:20:33]} 13... f5 {[%clk 0:57:18]} 14. Qf3 {[%clk 1:12:45]} 14... Nd4 {[%clk
0:54:03]} 15. Qd1 {[%clk 1:05:14]} 15... Qd6 {[%clk 0:45:16]} 16. Ne2 {[%clk
0:54:38]} 16... Nxb3 {[%clk 0:44:37]} 17. axb3 {[%clk 0:55:00]} 17... f4 {[%clk
0:38:04]} 18. f3 {[%clk 0:42:37]} 18... Rf6 {[%clk 0:31:20]} 19. Nc3 {[%clk
0:40:40]} 19... Rg6 {[%clk 0:21:59]} 20. Kh1 {[%clk 0:40:32]} 20... Re8 {[%clk
0:21:04]} 21. Nxd5 {[%clk 0:39:01]} 21... Bxd5 {[%clk 0:21:18]} 22. Bxf4 {[%clk
0:38:56]} 22... Qf6 {[%clk 0:19:38]} 23. Bg3 {[%clk 0:33:37]} 23... h5 {[%clk
0:16:56]} 24. c4 {[%clk 0:17:54]} 24... Bb7 {[%clk 0:13:45]} 25. Bf2 {[%clk
0:16:36]} 25... Rf8 {[%clk 0:12:40]} 26. Re3 {[%clk 0:14:58]} 26... h4 {[%clk
0:10:10]} 27. h3 {[%clk 0:14:48]} 27... Qg5 {[%clk 0:10:36]} 28. Qf1 {[%clk
0:14:04]} 28... Qh5 {[%clk 0:09:46]} 29. Rae1 {[%clk 0:11:07]} 29... Rxf3 30.
gxf3 {[%clk 0:07:10]} 30... Bxf3+ {[%clk 0:03:44]} 31. Kh2 {[%clk 0:06:34]}
31... Rg2+ {[%clk 0:01:53]} 32. Qxg2 {[%clk 0:06:58]} 32... Bxg2 {[%clk
0:02:17]} 33. Kxg2 {[%clk 0:07:24]} 33... Qg5+ {[%clk 0:02:27]} 34. Kf1 {[%clk
0:05:49]} 34... Qf5 {[%clk 0:02:52]} 35. Ke2 {[%clk 0:04:32]} 35... g5 {[%clk
0:02:32]} 36. Rg1 {[%clk 0:04:49]} 36... Kh7 {[%clk 0:02:37]} 37. Rg4 {[%clk
0:04:40]} 37... Qf6 {[%clk 0:02:03]} 38. Rf3 {[%clk 0:03:40]} 38... Qg6 {[%clk
0:02:21]} 39. Be3 {[%clk 0:03:31]} 39... bxc4 {[%clk 0:02:03]} 40. bxc4 {[%clk
0:03:47]} 40... Qe6 {[%clk 0:01:11]} 41. Bxg5 {[%clk 0:03:26]} 41... a5 {[%clk
0:00:56]} 42. Rxh4+ {[%clk 0:02:23]} 42... Kg8 {[%clk 0:00:41]} 43. Rg4 {[%clk
0:02:19]} 43... Kh7 {[%clk 0:01:00]} 44. Rf6 {[%clk 0:01:49]} 44... Qe8 {[%clk
0:01:01]} 45. Be3 {[%clk 0:01:46]} 45... Qh5 46. Rh6+ {[%clk 0:02:09]} 46...
Qxh6 {[%clk 0:01:01]} 47. Bxh6 {[%clk 0:02:33]} 47... Kxh6 {[%clk 0:01:28]} 48.
Rg8 {[%clk 0:02:55]} 48... Kh5 {[%clk 0:01:49]} 49. Kf2 {[%clk 0:03:19]} 49...
Kh4 {[%clk 0:02:07]} 50. Kg2 {[%clk 0:03:44]} 50... Kh5 {[%clk 0:02:23]} 51. Kf3
{[%clk 0:04:01]} 51... Kh4 {[%clk 0:02:25]} 52. Ke4 {[%clk 0:04:15]} 52... Kxh3
{[%clk 0:02:46]} 53. Kxe5 {[%clk 0:04:42]} 53... Kh4 {[%clk 0:03:03]} 54. Ke4
1-0

[Variant "Standard"]
[Site "Europe Echecs"]

[Event "Championnat du monde jeunes U12F"]
[Date "2024.11.22"]
[White "Jacome Revelo, Daniela Alexandra"]
[Black "Chen, Pin-I"]
[WhiteElo "1764"]
[BlackElo "1601"]
[Round "7.30"]
[Result "0-1"]
[TimeControl "5400+30"]

1. e4 {[%clk 1:30:54]} 1... c6 {[%clk 1:30:56]} 2. Nf3 {[%clk 1:30:56]} 2... d5
{[%clk 1:31:14]} 3. exd5 {[%clk 1:31:06]} 3... cxd5 {[%clk 1:31:35]} 4. Ne5
{[%clk 1:30:54]} 4... Nf6 {[%clk 1:28:17]} 5. d4 {[%clk 1:29:36]} 5... Bf5
{[%clk 1:26:16]} 6. c3 {[%clk 1:27:24]} 6... Nbd7 {[%clk 1:22:14]} 7. Nd2 {[%clk
1:20:29]} 7... e6 {[%clk 1:21:37]} 8. g4 {[%clk 1:16:18]} 8... Bg6 {[%clk
1:10:20]} 9. Nxg6 {[%clk 1:14:58]} 9... hxg6 {[%clk 1:10:33]} 10. Bd3 {[%clk
1:06:57]} 10... Bd6 {[%clk 1:08:28]} 11. h3 {[%clk 1:05:33]} 11... Qc7 {[%clk
1:05:55]} 12. Nf3 {[%clk 1:04:22]} 12... Nxg4 {[%clk 1:02:25]} 13. Ng5 {[%clk
1:00:37]} 13... Ngf6 {[%clk 1:00:44]} 14. Qe2 {[%clk 0:58:08]} 14... Nf8 {[%clk
0:57:08]} 15. Bb5+ {[%clk 0:50:48]} 15... N6d7 {[%clk 0:51:24]} 16. Kd1 {[%clk
0:45:34]} 16... a6 {[%clk 0:47:52]} 17. Bd3 {[%clk 0:30:55]} 17... Bf4 {[%clk
0:46:54]} 18. Qf3 {[%clk 0:18:50]} 18... Bxg5 {[%clk 0:44:38]} 19. Bxg5 {[%clk
0:18:52]} 19... Nh7 {[%clk 0:36:52]} 20. Bf4 {[%clk 0:18:29]} 20... Qb6 {[%clk
0:36:53]} 21. Kc2 {[%clk 0:18:19]} 21... Nhf6 {[%clk 0:36:35]} 22. Rhe1 {[%clk
0:15:23]} 22... Rc8 {[%clk 0:32:52]} 23. Qe3 {[%clk 0:13:36]} 23... Qc6 {[%clk
0:30:01]} 24. a4 {[%clk 0:10:28]} 24... Nb6 {[%clk 0:28:47]} 25. Bxg6 {[%clk
0:10:13]} 25... Nc4 {[%clk 0:25:21]} 26. Qxe6+ {[%clk 0:08:35]} 26... Qxe6
{[%clk 0:25:38]} 27. Rxe6+ {[%clk 0:09:00]} 27... Kf8 {[%clk 0:25:50]} 28. Bxf7
{[%clk 0:07:29]} 28... Kxf7 {[%clk 0:26:09]} 29. Rae1 {[%clk 0:06:21]} 29...
Rce8 {[%clk 0:25:16]} 30. Rxe8 {[%clk 0:06:04]} 30... Rxe8 {[%clk 0:25:03]} 31.
Rxe8 {[%clk 0:06:18]} 31... Nxe8 {[%clk 0:25:00]} 32. b4 {[%clk 0:06:38]} 32...
b5 {[%clk 0:24:29]} 33. a5 {[%clk 0:06:57]} 33... Kf6 {[%clk 0:24:42]} 34. Kd3
{[%clk 0:06:46]} 34... Kf5 {[%clk 0:25:03]} 35. Bg3 {[%clk 0:07:00]} 35... Nf6
{[%clk 0:24:49]} 36. f3 {[%clk 0:06:48]} 36... Nh5 {[%clk 0:24:59]} 37. Bh2
{[%clk 0:06:38]} 37... Nf4+ {[%clk 0:24:49]} 38. Kc2 Nxh3 {[%clk 0:25:07]} 39.
Bg3 {[%clk 0:06:16]} 39... Ng5 {[%clk 0:25:24]} 40. f4 {[%clk 0:05:58]} 40...
Ne6 {[%clk 0:25:28]} 41. Bh2 {[%clk 0:05:47]} 41... Nxf4 {[%clk 0:25:53]} 42.
Bxf4 {[%clk 0:05:17]} 42... Kxf4 {[%clk 0:26:17]} 43. Kb3 {[%clk 0:05:39]} 43...
g5 {[%clk 0:26:41]} 44. Ka2 {[%clk 0:06:02]} 44... g4 {[%clk 0:27:06]} 45. Kb3
{[%clk 0:06:23]} 45... g3 {[%clk 0:27:33]} 46. Ka2 {[%clk 0:06:47]} 46... g2
{[%clk 0:27:58]} 47. Kb3 {[%clk 0:07:01]} 47... g1=Q {[%clk 0:28:17]} 48. Ka2
{[%clk 0:07:13]} 48... Qf2+ {[%clk 0:28:40]} 49. Kb3 {[%clk 0:07:37]} 49... Qb2#
{[%clk 0:29:04]} 0-1

[Variant "Standard"]
[Site "Europe Echecs"]

[Event "Championnat du monde jeunes U12F"]
[Date "2024.11.22"]
[White "Muradova, Nebahat"]
[Black "Alcantara, Levanah"]
[WhiteElo "1626"]
[BlackElo "1753"]
[Round "7.31"]
[Result "0-1"]
[TimeControl "5400+30"]

1. d4 {[%clk 1:30:58]} 1... d5 {[%clk 1:30:46]} 2. c4 {[%clk 1:31:19]} 2... e6
{[%clk 1:31:07]} 3. Nc3 {[%clk 1:31:44]} 3... Be7 {[%clk 1:31:27]} 4. Nf3 {[%clk
1:32:09]} 4... Nf6 {[%clk 1:31:46]} 5. Bg5 {[%clk 1:32:33]} 5... O-O {[%clk
1:31:52]} 6. e3 {[%clk 1:31:17]} 6... a6 {[%clk 1:32:02]} 7. Bd3 {[%clk
1:31:27]} 7... dxc4 {[%clk 1:32:01]} 8. Bxc4 {[%clk 1:31:49]} 8... b5 {[%clk
1:32:02]} 9. Bd3 {[%clk 1:32:13]} 9... Bb7 {[%clk 1:32:06]} 10. O-O {[%clk
1:32:31]} 10... Nbd7 {[%clk 1:31:38]} 11. a3 {[%clk 1:31:35]} 11... c5 {[%clk
1:28:57]} 12. Qe2 {[%clk 1:30:15]} 12... Qb6 {[%clk 1:25:48]} 13. Ne5 {[%clk
1:20:31]} 13... Rfd8 {[%clk 1:12:12]} 14. Nxd7 {[%clk 1:17:44]} 14... Rxd7
{[%clk 1:11:29]} 15. dxc5 {[%clk 1:16:40]} 15... Qxc5 {[%clk 1:09:50]} 16. Bxf6
{[%clk 1:16:19]} 16... Bxf6 {[%clk 1:09:25]} 17. Rac1 {[%clk 1:12:40]} 17... Qb6
{[%clk 1:02:04]} 18. Rfd1 {[%clk 1:12:47]} 18... Rad8 {[%clk 1:00:16]} 19. h3
{[%clk 0:55:00]} 19... g6 {[%clk 0:54:08]} 20. Bb1 {[%clk 0:47:00]} 20... Be5
{[%clk 0:31:27]} 21. Rxd7 {[%clk 0:32:25]} 21... Rxd7 {[%clk 0:30:09]} 22. Na2
{[%clk 0:28:39]} 22... Qd8 {[%clk 0:27:41]} 23. Nb4 {[%clk 0:12:27]} 23... Rd2
{[%clk 0:26:33]} 24. Qg4 {[%clk 0:12:03]} 24... h5 {[%clk 0:25:57]} 0-1

[Variant "Standard"]
[Site "Europe Echecs"]